bitfinex-derivatives/quotes_BTCF0:USTF0_20260131
["timestamp","ask_amount","ask_price","bid_price","bid_amount"]
[1769879913701,0.28403719,79321.0,79258.0,0.10228]
[1769879913702,0.10228,79300.0,79258.0,0.39198486]
[1769879914005,0.15852409,79299.0,79260.0,0.28970486]
[1769879914208,0.15852409,79298.0,79260.0,0.28970486]
[1769879914810,0.28466089,79297.0,79260.0,0.28970486]
[1769879915111,0.10228,79308.0,79260.0,0.28970486]
[1769879915112,0.15852409,79296.0,79260.0,0.28970486]
[1769879915318,0.15852409,79295.0,79260.0,0.28970486]
[1769879915517,0.15093831,79294.0,79260.0,0.28970486]
[1769879915808,0.28403719,79292.0,79187.0,0.1265]
[1769879916012,0.28403719,79279.0,79185.0,0.28970486]
[1769879916209,0.28403719,79262.0,79185.0,0.28970486]
[1769879916407,0.28403719,79250.0,79174.0,0.10228]
[1769879916610,0.28403719,79247.0,79169.0,0.28970486]
[1769879916811,0.29403047,79244.0,79176.0,0.29172043]
[1769879917011,0.29403047,79242.0,79176.0,0.39400043]
[1769879917210,0.29403047,79240.0,79177.0,0.12624349]
[1769879917407,0.29403047,79238.0,79177.0,0.12624349]
[1769879917715,0.15090947,79237.0,79177.0,0.29172043]
[1769879918008,0.15090947,79236.0,79178.0,0.29172043]
[1769879918211,0.40924,79247.0,79207.0,0.01019937]
[1769879918408,0.15069343,79246.0,79193.0,0.29172043]
[1769879918614,0.12625067,79246.0,79209.0,0.29172043]
[1769879918914,0.10232,79270.0,79213.0,0.29172043]
[1769879919104,0.1507507,79269.0,79213.0,0.29172043]
[1769879919305,0.10232,79275.0,79218.0,0.29172043]
[1769879919508,0.10232,79275.0,79220.0,0.29172043]
[1769879919712,0.10232,79275.0,79229.0,0.29172043]
[1769879920014,0.10232,79275.0,79211.0,0.14462965]
[1769879920015,0.10232,79275.0,79232.0,0.29172043]
[1769879920315,0.62675047,79302.0,79236.0,0.29172043]
[1769879920518,0.15073661,79301.0,79241.0,0.29172043]
[1769879920718,0.30636169,79317.0,79241.0,0.29172043]
[1769879921016,0.12615272,79304.0,79241.0,0.29172043]
[1769879921214,0.29403047,79315.0,79243.0,0.29172043]
[1769879921409,0.29611398,79313.0,79243.0,0.29172043]
[1769879921606,0.10232,79316.0,79243.0,0.29172043]
[1769879921607,0.29611398,79311.0,79243.0,0.29172043]
[1769879921810,0.29611398,79309.0,79244.0,0.12615272]
[1769879922008,0.29611398,79307.0,79243.0,0.29172043]
[1769879922318,0.29611398,79305.0,79244.0,0.12613839]
[1769879922516,0.29611398,79303.0,79244.0,0.12613839]
[1769879922717,0.29611398,79301.0,79243.0,0.29172043]
[1769879922919,0.29611398,79301.0,79244.0,0.12614396]
[1769879923314,0.10232,79316.0,79245.0,0.27327675]
[1769879923519,0.12614396,79300.0,79256.0,0.27327675]
[1769879923813,0.10232,79327.0,79265.0,0.28591175]
[1769879924019,0.10232,79327.0,79274.0,0.27327675]
[1769879924208,0.10232,79327.0,79276.0,0.27327675]
[1769879924414,0.10232,79327.0,79278.0,0.27327675]
[1769879924918,0.29611398,79382.0,79290.0,0.27327675]
[1769879925120,0.29611398,79365.0,79292.0,0.27327675]
[1769879925319,0.29611398,79365.0,79279.0,0.26927491]
[1769879925320,0.12609942,79347.0,79296.0,0.27327675]
[1769879925518,0.29611398,79365.0,79304.0,0.27327675]
[1769879925820,0.29611398,79365.0,79297.0,0.10232]
[1769879925821,0.29611398,79362.0,79297.0,0.10232]
[1769879926015,0.29611398,79360.0,79297.0,0.10232]
[1769879926215,0.29611398,79358.0,79297.0,0.10232]
[1769879926518,0.29611398,79356.0,79297.0,0.10232]
[1769879926711,0.15330452,79355.0,79299.0,0.27327675]
[1769879927019,0.15330452,79355.0,79297.0,0.10232]
[1769879927020,0.29611398,79389.0,79312.0,0.27327675]
[1769879927322,0.12605968,79370.0,79312.0,0.27327675]
[1769879927717,0.29611398,79387.0,79312.0,0.27327675]
[1769879927917,0.29611398,79387.0,79314.0,0.27327675]
[1769879927918,0.28065097,79386.0,79314.0,0.27327675]
[1769879928118,0.15461273,79385.0,79314.0,0.27327675]
[1769879928318,0.29611398,79383.0,79300.0,0.74204]
[1769879928624,0.29611398,79381.0,79311.0,0.12603824]
[1769879928818,0.29611398,79379.0,79311.0,0.12603824]
[1769879929019,0.29611398,79377.0,79301.0,0.27327675]
[1769879929322,0.29611398,79375.0,79297.0,0.10232]
[1769879929622,0.29611398,79373.0,79297.0,0.10232]
[1769879929919,0.29611398,79371.0,79297.0,0.10232]
[1769879930115,0.29611398,79369.0,79297.0,0.10232]
[1769879930315,0.29611398,79367.0,79297.0,0.10232]
[1769879930513,0.29611398,79365.0,79297.0,0.10232]
[1769879930720,0.29611398,79363.0,79297.0,0.10232]
[1769879930913,0.15461273,79364.0,79297.0,0.10232]
[1769879930914,0.29611398,79361.0,79297.0,0.37559675]
[1769879931110,0.29611398,79359.0,79297.0,0.37559675]
[1769879931318,0.29611398,79357.0,79297.0,0.10232]
[1769879931623,0.29611398,79355.0,79297.0,0.10232]
[1769879931818,0.29611398,79353.0,79297.0,0.10232]
[1769879932321,0.29611398,79351.0,79297.0,0.10232]
[1769879932521,0.29611398,79349.0,79297.0,0.10232]
[1769879932722,0.29611398,79347.0,79297.0,0.10232]
[1769879932925,0.29611398,79345.0,79297.0,0.10232]
[1769879933221,0.29611398,79343.0,79297.0,0.10232]
[1769879933430,0.29611398,79341.0,79297.0,0.10232]
[1769879933618,0.00102082,79319.0,79297.0,0.10232]
[1769879933819,0.00102082,79319.0,79280.0,0.27327675]
[1769879934225,0.00102082,79319.0,79289.0,0.012631]
[1769879934419,0.29611398,79340.0,79281.0,0.12607319]
[1769879934624,0.29611398,79340.0,79276.0,0.27327675]
[1769879934815,0.12607319,79340.0,79287.0,0.27327675]
[1769879935019,0.29611398,79339.0,79276.0,0.12607319]
[1769879935223,0.29611398,79339.0,79275.0,0.10228]
[1769879935224,0.00106607,79308.0,79277.0,0.27327675]
[1769879935922,0.00106607,79308.0,79278.0,0.12611533]
[1769879936319,0.10228,79335.0,79276.0,0.27327675]
[1769879936515,0.15413216,79334.0,79276.0,0.39939208]
[1769879936724,0.12611533,79323.0,79276.0,0.27327675]
[1769879936920,0.29611398,79334.0,79276.0,0.27327675]
[1769879937228,0.12609545,79332.0,79276.0,0.27327675]
[1769879937524,0.29611398,79334.0,79276.0,0.27327675]
[1769879937525,0.15412644,79331.0,79276.0,0.27327675]
[1769879937728,0.15412644,79330.0,79276.0,0.27327675]
[1769879937919,0.15412644,79329.0,79276.0,0.27327675]
[1769879938125,0.10228,79335.0,79267.0,0.00010422]
[1769879938126,0.29611398,79327.0,79267.0,0.00010422]
[1769879938421,0.29611398,79325.0,79267.0,0.00010422]
[1769879938625,0.29611398,79323.0,79267.0,0.00010422]
[1769879938933,0.29611398,79321.0,79267.0,0.00010422]
[1769879939226,0.29611398,79319.0,79267.0,0.00010422]
[1769879939428,0.29611398,79317.0,79267.0,0.00010422]
[1769879939625,0.29611398,79315.0,79267.0,0.00010422]
[1769879939819,0.29611398,79313.0,79267.0,0.00010422]
[1769879940126,0.25652078,79314.0,79267.0,0.00010422]
[1769879940127,0.29611398,79311.0,79267.0,0.00010422]
[1769879940427,0.29611398,79309.0,79267.0,0.00010422]
[1769879940626,0.29611398,79307.0,79267.0,0.00010422]
[1769879940829,0.29611398,79305.0,79267.0,0.00010422]
[1769879941025,0.15424078,79304.0,79267.0,0.00010422]
[1769879941223,0.57647725,79304.0,79267.0,0.00010422]
[1769879941423,0.15424078,79303.0,79267.0,0.27338097]
[1769879941631,0.10228,79314.0,79267.0,0.27338097]
[1769879941823,0.15720028,79313.0,79267.0,0.27338097]
[1769879942123,0.15720028,79312.0,79267.0,0.27338097]
[1769879942428,0.10228,79343.0,79279.0,0.27327675]
[1769879942622,0.15913434,79342.0,79282.0,0.27327675]
[1769879942929,0.29611398,79334.0,79280.0,0.10228]
[1769879943222,0.15913434,79341.0,79280.0,0.10228]
[1769879943223,0.29611398,79332.0,79280.0,0.10228]
[1769879943416,0.15913434,79331.0,79280.0,0.10228]
[1769879943621,0.45524832,79330.0,79280.0,0.10228]
[1769879943825,0.29611398,79328.0,79280.0,0.10228]
[1769879944018,0.29611398,79326.0,79280.0,0.10228]
[1769879944225,0.29611398,79324.0,79280.0,0.10228]
[1769879944422,0.15913434,79323.0,79280.0,0.10228]
[1769879944622,0.39839398,79341.0,79289.0,0.27327675]
[1769879944822,0.10228,79341.0,79293.0,0.27327675]
[1769879945023,0.29611398,79375.0,79295.0,0.27327675]
[1769879945223,0.29611398,79375.0,79304.0,0.27327675]
[1769879945425,0.12610101,79374.0,79317.0,0.27327675]
[1769879945626,0.12610101,79374.0,79319.0,0.27327675]
[1769879945925,0.12610101,79374.0,79320.0,0.27327675]
[1769879946128,0.12610101,79374.0,79321.0,0.28590275]
[1769879946427,0.40924,79406.0,79321.0,0.27327675]
[1769879946622,0.29611398,79398.0,79342.0,0.27327675]
[1769879946824,0.00113257,79370.0,79343.0,0.10228]
[1769879947122,0.10228,79399.0,79343.0,0.10228]
[1769879947318,0.1260025,79369.0,79327.0,0.27762835]
[1769879947521,0.10228,79398.0,79344.0,0.1260025]
[1769879947730,0.14868467,79397.0,79345.0,0.10228]
[1769879947928,0.14868467,79396.0,79345.0,0.10228]
[1769879948129,0.14868467,79395.0,79345.0,0.10228]
[1769879948332,0.14868467,79394.0,79345.0,0.10228]
[1769879948531,0.14868467,79393.0,79346.0,0.41624095]
[1769879948732,0.27363095,79392.0,79346.0,0.1259906]
[1769879948931,0.27363095,79392.0,79345.0,0.10228]
[1769879949130,0.27363095,79390.0,79345.0,0.10228]
[1769879949425,0.27363095,79388.0,79319.0,0.10228]
[1769879949625,0.27363095,79386.0,79319.0,0.10228]
[1769879949823,0.27363095,79386.0,79300.0,0.27762835]
[1769879949824,0.27363095,79384.0,79307.0,0.12599298]
[1769879950133,0.10228,79398.0,79301.0,0.10228]
[1769879950134,0.27363095,79379.0,79301.0,0.10228]
[1769879950335,0.27363095,79375.0,79297.0,0.10228]
[1769879950530,0.58364566,79378.0,79297.0,0.10228]
[1769879950531,0.27363095,79370.0,79297.0,0.10228]
[1769879950837,0.27363095,79368.0,79297.0,0.10228]
[1769879951036,0.27363095,79362.0,79298.0,0.27762835]
[1769879951234,0.27363095,79360.0,79299.0,0.27762835]
[1769879951434,0.27363095,79358.0,79299.0,0.27762835]
[1769879951634,0.27363095,79356.0,79299.0,0.27762835]
[1769879951841,0.14880566,79355.0,79299.0,0.27762835]
[1769879952039,0.14880566,79354.0,79303.0,0.27762835]
[1769879952341,0.14880566,79354.0,79305.0,0.27762835]
[1769879952342,0.1260581,79354.0,79305.0,0.27762835]
[1769879952638,0.27363095,79373.0,79316.0,0.27762835]
[1769879952831,0.1472151,79372.0,79317.0,0.37990835]
[1769879953029,0.1472151,79372.0,79317.0,0.10228]
[1769879953030,0.27363095,79370.0,79317.0,0.10228]
[1769879953233,0.27363095,79368.0,79317.0,0.10228]
[1769879953442,0.27363095,79366.0,79317.0,0.10228]
[1769879953740,0.27363095,79364.0,79317.0,0.10228]
[1769879953942,0.27363095,79362.0,79317.0,0.10228]
[1769879954143,0.1472151,79361.0,79318.0,0.27762835]
[1769879954343,0.1472151,79360.0,79317.0,0.10228]
[1769879954535,0.27363095,79358.0,79317.0,0.10228]
[1769879954839,0.1472151,79357.0,79317.0,0.10228]
[1769879955036,0.42084605,79357.0,79317.0,0.10228]
[1769879955237,0.42084605,79356.0,79317.0,0.10228]
[1769879955432,0.42084605,79355.0,79317.0,0.10228]
[1769879955735,0.1472151,79354.0,79317.0,0.10228]
[1769879955932,0.1472151,79353.0,79317.0,0.10228]
[1769879956131,0.00128279,79336.0,79317.0,0.10228]
[1769879956536,0.00171068,79327.0,79286.0,0.27762835]
[1769879956742,0.00171068,79327.0,79287.0,0.10224]
[1769879956935,0.12609306,79326.0,79287.0,0.10224]
[1769879957339,0.00171068,79327.0,79294.0,0.27762835]
[1769879957638,0.00171068,79311.0,79287.0,0.10224]
[1769879958344,0.00171068,79311.0,79287.0,0.37986835]
[1769879958536,0.10224,79340.0,79288.0,0.27762835]
[1769879958737,0.14688994,79339.0,79315.0,0.012627]
[1769879958936,0.35266245,79378.0,79288.0,0.1260867]
[1769879958937,0.27363095,79373.0,79316.0,0.10224]
[1769879959143,0.33252,79388.0,79318.0,0.27762835]
[1769879959144,0.12608114,79358.0,79318.0,0.27762835]
[1769879959341,0.27363095,79386.0,79321.0,0.27762835]
[1769879959544,0.27363095,79386.0,79319.0,0.43476]
[1769879959545,0.14690073,79385.0,79325.0,0.27762835]
[1769879959844,0.14690073,79385.0,79319.0,0.43476]
[1769879959845,0.12608114,79385.0,79341.0,0.27762835]
[1769879960144,0.10224,79398.0,79343.0,0.27762835]
[1769879960344,0.14690914,79397.0,79345.0,0.27762835]
[1769879960541,0.10224,79398.0,79345.0,0.27762835]
[1769879960939,0.1259898,79397.0,79346.0,0.40361815]
[1769879961141,0.1259898,79397.0,79347.0,0.27762835]
[1769879961446,0.27363095,79396.0,79347.0,0.27762835]
[1769879962141,0.1259898,79395.0,79347.0,0.27762835]
[1769879962941,0.1259898,79395.0,79344.0,0.10224]
[1769879962942,0.00154108,79371.0,79349.0,0.27762835]
[1769879963439,0.00154108,79371.0,79344.0,0.10224]
[1769879963440,0.00172359,79360.0,79344.0,0.10224]
[1769879964045,0.00172359,79360.0,79323.0,0.10224]
[1769879964247,0.27363095,79358.0,79323.0,0.10224]
[1769879964545,0.00172359,79341.0,79323.0,0.10224]
[1769879965244,0.27535454,79341.0,79291.0,0.27762835]
[1769879965438,0.27535454,79341.0,79280.0,0.10224]
[1769879965439,0.27363095,79374.0,79300.0,0.27470701]
[1769879965644,0.27363095,79372.0,79302.0,0.12605253]
[1769879965949,0.12605253,79353.0,79301.0,0.43468]
[1769879966246,0.27363095,79356.0,79302.0,0.4133806]
[1769879966247,0.12604459,79352.0,79302.0,0.4133806]
[1769879966639,0.10224,79351.0,79302.0,0.4133806]
[1769879966842,0.10224,79381.0,79323.0,0.27762835]
[1769879967042,0.27363095,79382.0,79325.0,0.27762835]
[1769879967245,0.12606048,79381.0,79331.0,0.27762835]
[1769879967442,0.12606048,79381.0,79336.0,0.012624]
[1769879967642,0.10224,79390.0,79346.0,0.27762835]
[1769879967840,0.27363095,79399.0,79352.0,0.27762835]
[1769879968042,0.27363095,79399.0,79353.0,0.012621]
[1769879968248,0.12601044,79389.0,79347.0,0.10224]
[1769879968439,0.27363095,79399.0,79348.0,0.27762835]
[1769879968644,0.27363095,79399.0,79353.0,0.012621]
[1769879968845,0.12601044,79398.0,79353.0,0.012621]
[1769879969151,0.39964139,79398.0,79348.0,0.27762835]
[1769879969351,0.0017232,79373.0,79349.0,0.012622]
[1769879969545,0.0017232,79373.0,79349.0,0.13860863]
[1769879969746,0.0017232,79373.0,79349.0,0.12598663]
[1769879970049,0.0017232,79373.0,79349.0,0.13860863]
[1769879970247,0.0017232,79361.0,79349.0,0.13860863]
[1769879970451,0.27363095,79398.0,79349.0,0.12598663]
[1769879970651,0.12600647,79397.0,79349.0,0.12598663]
[1769879970950,0.12600647,79397.0,79348.0,0.27762835]
[1769879971147,0.12600647,79397.0,79347.0,0.10224]
[1769879971148,0.12600647,79397.0,79350.0,0.27762835]
[1769879971451,0.10224,79407.0,79352.0,0.27762835]
[1769879971452,0.27363095,79399.0,79352.0,0.27762835]
[1769879971852,0.27363095,79399.0,79347.0,0.114862]
[1769879972057,0.27363095,79399.0,79347.0,0.10224]
[1769879972250,0.27363095,79397.0,79347.0,0.10224]
[1769879972446,0.27363095,79395.0,79347.0,0.10224]
[1769879972648,0.10224,79407.0,79347.0,0.10224]
[1769879972649,0.27363095,79393.0,79347.0,0.10224]
[1769879972845,0.27363095,79392.0,79347.0,0.10224]
[1769879973452,0.10224,79407.0,79347.0,0.10224]
[1769879973453,0.27363095,79390.0,79347.0,0.10224]
[1769879974153,0.12599456,79389.0,79347.0,0.10224]
[1769879974354,0.12599456,79389.0,79348.0,0.012622]
[1769879974758,0.27363095,79387.0,79324.0,0.00011266]
[1769879974958,0.10224,79407.0,79296.0,0.27762835]
[1769879974959,0.27363095,79383.0,79296.0,0.27762835]
[1769879975154,0.27363095,79371.0,79279.0,0.27762835]
[1769879975359,0.27363095,79362.0,79279.0,0.27762835]
[1769879975555,0.27363095,79360.0,79279.0,0.27762835]
[1769879975861,0.24623845,79361.0,79286.0,0.29026035]
[1769879975862,0.27363095,79358.0,79286.0,0.29026035]
[1769879976157,0.27363095,79356.0,79286.0,0.27762835]
[1769879976359,0.27363095,79354.0,79287.0,0.012631]
[1769879976662,0.27363095,79352.0,79287.0,0.1260724]
[1769879976862,0.27363095,79350.0,79287.0,0.1260724]
[1769879977064,0.29415217,79348.0,79287.0,0.1260724]
[1769879977264,0.29415217,79346.0,79287.0,0.1260724]
[1769879977561,0.29415217,79344.0,79287.0,0.1260724]
[1769879977763,0.29415217,79342.0,79287.0,0.1260724]
[1769879977962,0.29415217,79340.0,79287.0,0.1260724]
[1769879978158,0.29415217,79338.0,79287.0,0.1260724]
[1769879978360,0.29415217,79336.0,79287.0,0.1260724]
[1769879978560,0.29415217,79336.0,79273.0,0.114834]
[1769879978561,0.29415217,79334.0,79273.0,0.1022]
[1769879978766,0.29415217,79332.0,79257.0,0.10224]
[1769879978959,0.29415217,79330.0,79258.0,0.28009688]
[1769879979155,0.29415217,79328.0,79260.0,0.27997148]
[1769879979354,0.29415217,79328.0,79259.0,0.12609783]
[1769879979355,0.29415217,79326.0,79259.0,0.12609783]
[1769879979564,0.47643845,79327.0,79258.0,0.0001254]
[1769879979565,0.29415217,79324.0,79258.0,0.0001254]
[1769879979761,0.29415217,79322.0,79258.0,0.0001254]
[1769879980066,0.40896,79325.0,79258.0,0.0001254]
[1769879980067,0.53106741,79319.0,79258.0,0.0001254]
[1769879980259,0.29415217,79311.0,79258.0,0.0001254]
[1769879980460,0.23691524,79315.0,79258.0,0.0001254]
[1769879980461,0.29415217,79309.0,79258.0,0.0001254]
[1769879980663,0.29415217,79307.0,79258.0,0.0001254]
[1769879980861,0.29415217,79305.0,79258.0,0.0001254]
[1769879981061,0.29415217,79303.0,79227.0,0.10224]
[1769879981264,0.29415217,79301.0,79227.0,0.10224]
[1769879981465,0.27828102,79299.0,79227.0,0.10224]
[1769879981764,0.27828102,79297.0,79227.0,0.10224]
[1769879981965,0.27828102,79295.0,79207.0,0.10224]
[1769879982269,0.00010548,79216.0,79191.0,0.10224]
[1769879982464,0.27828102,79254.0,79211.0,0.00011265]
[1769879982767,0.12616226,79242.0,79192.0,0.2711322]
[1769879982964,0.27828102,79241.0,79192.0,0.2711322]
[1769879983166,0.27828102,79252.0,79194.0,0.2711322]
[1769879983463,0.12621083,79240.0,79201.0,0.00011265]
[1769879983669,0.27828102,79252.0,79202.0,0.00011265]
[1769879983866,0.27828102,79250.0,79194.0,0.2711322]
[1769879984064,0.27828102,79250.0,79190.0,9.718e-05]
[1769879984568,0.27828102,79248.0,79190.0,9.718e-05]
[1769879984971,0.27828102,79248.0,79195.0,0.00011265]
[1769879985263,0.27828102,79248.0,79169.0,0.01265]
[1769879985264,0.27828102,79246.0,79159.0,0.2711322]
[1769879985470,0.27828102,79244.0,79149.0,0.10228]
[1769879985663,0.10224,79253.0,79149.0,0.10228]
[1769879985664,0.27828102,79242.0,79150.0,0.2711322]
[1769879985864,0.27828102,79240.0,79160.0,0.2711322]
[1769879986064,0.27828102,79240.0,79170.0,0.00011265]
[1769879986264,0.27828102,79240.0,79167.0,0.2711322]
[1769879986265,0.27828102,79240.0,79171.0,0.10228]
[1769879986470,0.27828102,79223.0,79171.0,0.10228]
[1769879986669,0.5355082,79239.0,79171.0,0.10228]
[1769879986670,0.27828102,79221.0,79171.0,0.10228]
[1769879987064,0.27828102,79219.0,79175.0,0.00011265]
[1769879987470,0.27828102,79219.0,79179.0,0.00011265]
[1769879987665,0.126269,79218.0,79171.0,0.10228]
[1769879987866,0.126269,79218.0,79189.0,0.00011265]
[1769879988066,0.10232,79222.0,79187.0,0.00011265]
[1769879988266,0.27828102,79221.0,79171.0,0.10228]
[1769879988467,0.27828102,79221.0,79158.0,0.2711322]
[1769879988772,0.27828102,79219.0,79163.0,0.00011265]
[1769879988971,0.27828102,79219.0,79162.0,0.00011265]
[1769879989172,0.27828102,79219.0,79164.0,0.00011265]
[1769879989369,0.12627936,79218.0,79164.0,0.00011265]
[1769879989672,0.27828102,79217.0,79166.0,0.00011265]
[1769879989870,0.27828102,79217.0,79160.0,0.00011265]
[1769879990071,0.27828102,79217.0,79154.0,0.10232]
[1769879990269,0.27828102,79215.0,79154.0,0.10232]
[1769879990464,0.27828102,79215.0,79130.0,0.2711322]
[1769879990669,0.27828102,79215.0,79131.0,0.10236]
[1769879990881,0.27828102,79213.0,79131.0,0.10236]
[1769879991078,1.02368,79212.0,79131.0,0.10236]
[1769879991276,0.27828102,79211.0,79131.0,0.10236]
[1769879991570,0.27828102,79211.0,79115.0,0.2711322]
[1769879991571,0.27828102,79210.0,79115.0,0.2711322]
[1769879991770,0.27828102,79210.0,79105.0,0.10236]
[1769879991978,0.27828102,79197.0,79106.0,0.2711322]
[1769879992274,0.27828102,79195.0,79109.0,0.2711322]
[1769879992478,0.27828102,79192.0,79105.0,0.10236]
[1769879992675,0.00010517,79115.0,79094.0,0.2711322]
[1769879992978,0.00010517,79115.0,79085.0,0.10236]
[1769879993171,0.07475314,79114.0,79085.0,0.10236]
[1769879993478,0.00010517,79115.0,79085.0,0.3734922]
[1769879993686,0.27828102,79158.0,79095.0,0.2711322]
[1769879993873,0.27828102,79156.0,79095.0,0.2711322]
[1769879994072,0.07420648,79135.0,79096.0,0.2837942]
[1769879994274,0.17660648,79135.0,79096.0,0.39751211]
[1769879994578,0.17660648,79135.0,79071.0,9.857e-05]
[1769879994579,0.27828102,79133.0,79071.0,4.857e-05]
[1769879994975,0.17660648,79135.0,79071.0,4.857e-05]
[1769879994976,0.29458068,79132.0,79071.0,0.27118077]
[1769879995276,0.27828102,79130.0,79072.0,0.2711322]
[1769879995580,0.00095893,79129.0,79074.0,0.012665]
[1769879995782,0.12737798,79129.0,79089.0,0.012663]
[1769879996081,0.00095893,79129.0,79091.0,0.2837952]
[1769879996381,0.1024,79158.0,79105.0,0.2711322]
[1769879996681,0.18528825,79145.0,79105.0,0.2711322]
[1769879997071,0.1024,79158.0,79105.0,0.2711322]
[1769879997276,0.27828102,79143.0,79106.0,0.1263823]
[1769879997583,0.27828102,79143.0,79075.0,0.2710822]
[1769879997876,0.27828102,79141.0,79080.0,0.1263823]
[1769879998176,0.00671061,79140.0,79074.0,0.012665]
[1769879998381,0.27828102,79139.0,79077.0,0.12640786]
[1769879998585,0.27828102,79139.0,79083.0,0.012664]
[1769879998778,0.01725102,79138.0,79083.0,0.012664]
[1769879998970,0.14365888,79138.0,79085.0,0.012664]
[1769879999176,0.05407957,79144.0,79085.0,0.012664]
[1769879999383,0.01533364,79137.0,79072.0,0.13168284]
[1769879999583,0.14173831,79137.0,79086.0,0.12640467]
[1769879999780,0.06941919,79143.0,79087.0,0.2711322]
[1769880000078,0.12831565,79136.0,79087.0,0.2711322]
[1769880000278,0.27828102,79134.0,79075.0,0.2711322]
[1769880000470,0.27828102,79134.0,79070.0,0.10244]
[1769880000677,0.27828102,79132.0,79071.0,0.27118077]
[1769880000875,0.27828102,79132.0,79071.0,0.28384677]
[1769880001080,0.12928057,79131.0,79080.0,0.2711322]
[1769880001283,0.27828102,79147.0,79090.0,0.2711322]
[1769880001481,0.10248,79164.0,79110.0,0.2711322]
[1769880001781,0.27828102,79163.0,79111.0,0.10248]
[1769880002085,0.27828102,79163.0,79107.0,0.10248]
[1769880002383,0.27828102,79161.0,79107.0,0.10248]
[1769880002775,0.27828102,79159.0,79087.0,0.10248]
[1769880003387,0.27828102,79157.0,79087.0,0.10248]
[1769880003685,0.00287521,79156.0,79066.0,0.2711322]
[1769880003884,0.27828102,79155.0,79066.0,0.2711322]
[1769880004083,0.40996,79154.0,79066.0,0.2711322]
[1769880004282,0.27828102,79153.0,79072.0,0.2711322]
[1769880004481,0.40468169,79153.0,79072.0,0.2711322]
[1769880004676,0.7603724,79152.0,79072.0,0.2711322]
[1769880004981,0.27828102,79151.0,79064.0,0.10248]
[1769880005291,0.02491974,79150.0,79064.0,0.10248]
[1769880005488,0.41922016,79149.0,79064.0,0.10248]
[1769880005787,0.18927977,79148.0,79064.0,0.10248]
[1769880005980,0.27828102,79147.0,79064.0,0.10248]
[1769880006284,0.27828102,79145.0,79071.0,0.27118077]
[1769880006788,0.27828102,79143.0,79071.0,0.27118077]
[1769880007088,0.0028763,79142.0,79071.0,4.857e-05]
[1769880007290,0.0028763,79142.0,79042.0,0.29383202]
[1769880007291,0.28623034,79140.0,79042.0,0.29383202]
[1769880007482,0.14112523,79139.0,79042.0,0.29383202]
[1769880007783,0.14112523,79139.0,79038.0,0.10248]
[1769880007784,0.10248,79133.0,79038.0,0.10248]
[1769880007981,0.10248,79112.0,79026.0,0.29383202]
[1769880008176,0.47440523,79111.0,79026.0,0.29383202]
[1769880008382,0.2440511,79110.0,79019.0,0.10248]
[1769880008586,0.1365711,79109.0,79019.0,0.10248]
[1769880008786,0.04602587,79109.0,78999.0,0.10252]
[1769880008982,0.10252,79089.0,78999.0,0.10252]
[1769880009189,0.33328,79088.0,78999.0,0.10252]
[1769880009385,0.28623034,79087.0,79000.0,0.29383202]
[1769880009685,0.33321653,79086.0,79000.0,0.29383202]
[1769880009878,0.33321653,79086.0,78999.0,0.10252]
[1769880010079,0.28623034,79067.0,78997.0,0.00011449]
[1769880010285,0.28623034,79065.0,78997.0,0.00011449]
[1769880010487,0.28623034,79063.0,78957.0,0.10252]
[1769880010788,0.28623034,79044.0,78938.0,0.29383202]
[1769880010981,0.28623034,78964.0,78873.0,0.29383202]
[1769880011181,0.10252,78965.0,78857.0,0.29383202]
[1769880011182,0.28623034,78962.0,78857.0,0.29383202]
[1769880011385,0.28623034,78962.0,78875.0,0.29383202]
[1769880011585,0.28623034,78935.0,78874.0,0.12656625]
[1769880011780,0.28623034,78908.0,78848.0,9.902e-05]
[1769880011982,0.28623034,78904.0,78848.0,9.902e-05]
[1769880012285,0.012697,78880.0,78849.0,0.12673548]
[1769880012584,0.34972134,78873.0,78811.0,0.29383202]
[1769880012786,0.29892934,78867.0,78811.0,0.29383202]
[1769880012988,0.0127,78858.0,78811.0,0.29383202]
[1769880013189,0.1339058,78866.0,78811.0,0.29383202]
[1769880013483,0.26074175,78878.0,78813.0,0.29383202]
[1769880013691,0.26074175,78878.0,78812.0,0.59442412]
[1769880013692,0.26074175,78878.0,78815.0,0.29383202]
[1769880013887,0.2365058,78887.0,78815.0,0.29383202]
[1769880013888,0.012699,78865.0,78815.0,0.29383202]
[1769880014187,0.29893034,78860.0,78816.0,0.12683595]
[1769880014384,0.29893034,78860.0,78769.0,0.012715]
[1769880014385,0.012704,78836.0,78780.0,0.2909626]
[1769880014581,0.34113238,78859.0,78780.0,0.2909626]
[1769880014881,0.34113238,78859.0,78781.0,0.012713]
[1769880014882,0.13513883,78848.0,78781.0,0.012713]
[1769880015083,0.33364,78867.0,78777.0,0.1026]
[1769880015084,0.063467,78903.0,78808.0,0.063543]
[1769880015291,0.28623034,78905.0,78810.0,0.063541]
[1769880015292,0.012693,78905.0,78810.0,0.063541]
[1769880015588,0.12327914,78889.0,78836.0,0.012704]
[1769880015783,0.12687215,78904.0,78840.0,0.012703]
[1769880016082,0.12687215,78904.0,78837.0,0.10264]
[1769880016083,0.05669225,78914.0,78849.0,0.012702]
[1769880016278,0.012693,78903.0,78841.0,0.26297757]
[1769880016491,0.012693,78903.0,78837.0,0.10264]
[1769880016790,0.0489758,78902.0,78850.0,0.012701]
[1769880016991,0.3,78911.0,78838.0,0.13427119]
[1769880017290,0.012699,78863.0,78842.0,9.2e-07]
[1769880017485,0.063492,78872.0,78807.0,0.10268]
[1769880017486,0.012702,78846.0,78807.0,0.10268]
[1769880017690,0.012702,78846.0,78775.0,0.41072]
[1769880017691,0.012706,78821.0,78774.0,0.10268]
[1769880018086,0.012711,78791.0,78722.0,0.10268]
[1769880018285,0.012715,78769.0,78722.0,0.10268]
[1769880018481,0.012715,78769.0,78701.0,0.012725]
[1769880018482,0.012716,78762.0,78725.0,0.12688906]
[1769880018685,0.012716,78762.0,78702.0,0.14543813]
[1769880018686,0.312716,78759.0,78698.0,0.10268]
[1769880018886,0.312716,78759.0,78648.0,0.01204946]
[1769880018887,0.3,78750.0,78673.0,0.00015003]
[1769880019189,0.4366,78761.0,78687.0,0.10268]
[1769880019190,0.3,78732.0,78687.0,0.10268]
[1769880019490,0.3,78732.0,78673.0,0.00015003]
[1769880019491,0.08040192,78731.0,78673.0,0.00015003]
[1769880019693,0.20355497,78731.0,78673.0,0.00015003]
[1769880019895,0.13648348,78744.0,78689.0,0.076366]
[1769880020188,0.13648348,78756.0,78700.0,0.01969091]
[1769880020381,0.13648348,78756.0,78713.0,0.012723]
[1769880020587,0.10591174,78771.0,78724.0,0.063611]
[1769880020784,0.31270799,78808.0,78736.0,0.01272]
[1769880020985,0.31270799,78808.0,78763.0,0.012715]
[1769880020986,0.27271977,78795.0,78763.0,0.012715]